bitfinex-derivatives/quotes_ETHF0:USTF0_20250314
["timestamp","ask_amount","ask_price","bid_price","bid_amount"]
[1741995969462,6.31484,1913.2,1913.1,3.21563986]
[1741995969855,1.04556,1912.8,1912.7,1.04559]
[1741995970167,1.04556,1912.8,1912.7,5.64479]
[1741995970562,1.04555,1912.9,1912.7,5.64479]
[1741995970865,1.04551,1912.9,1912.8,3.2078]
[1741995971065,1.04551,1912.9,1912.8,4.535]
[1741995971763,1.04551,1913.0,1912.9,1.04546]
[1741995972067,1.04551,1913.0,1912.9,4.5657]
[1741995972459,1.04543,1913.1,1913.0,1.04541]
[1741995972765,1.04543,1913.1,1913.0,8.7449]
[1741995973470,2.37433,1913.1,1913.0,8.7449]
[1741995973959,1.04543,1913.1,1913.0,8.7449]
[1741995976370,1.04562,1912.7,1912.6,3.2078]
[1741995976566,1.04562,1912.7,1912.6,3.9147]
[1741995976864,1.04562,1912.7,1912.6,7.1225]
[1741995977753,1.04562,1912.7,1912.6,9.1547]
[1741995977968,1.04562,1912.7,1912.6,12.6067]
[1741995978161,1.04562,1912.7,1912.6,4.5739]
[1741995978361,1.71652,1912.7,1912.6,4.5739]
[1741995978561,3.09892,1912.7,1912.6,4.5739]
[1741995978766,3.09892,1912.7,1912.6,1.3661]
[1741995978969,3.09892,1912.7,1912.6,4.5739]
[1741995979269,3.09892,1912.7,1912.6,5.2964]
[1741995979471,2.42802,1912.7,1912.6,5.2964]
[1741995980762,1.04562,1912.7,1912.6,5.2964]
[1741995981157,1.04562,1912.7,1912.6,3.2078]
[1741995981367,2.43922,1912.7,1912.6,3.2078]
[1741995981967,1.04562,1912.7,1912.6,3.2078]
[1741995982170,1.04562,1912.7,1912.6,4.6674]
[1741995983176,1.04562,1912.7,1912.6,8.1274]
[1741995983367,4.25339,1912.8,1912.7,1.04562]
[1741995983674,4.25339,1912.8,1912.7,7.11202]
[1741995983869,9.343,1913.3,1912.7,6.0664]
[1741995983870,3.2078,1913.1,1912.7,6.0664]
[1741995984074,1.04547,1913.0,1912.9,1.04545]
[1741995984373,3.2078,1913.1,1913.0,1.04545]
[1741995984575,3.2078,1913.1,1913.0,4.25325]
[1741995984765,1.04539,1913.2,1913.1,1.0454]
[1741995984964,1.04539,1913.2,1913.1,9.1351]
[1741995986173,4.25313,1913.3,1913.2,1.04534]
[1741995986376,4.25313,1913.3,1913.2,5.3043]
[1741995986672,1.05312986,1913.4,1913.3,1.04529]
[1741995986875,1.05312986,1913.4,1913.3,4.6495]
[1741995988074,1.05312986,1913.4,1913.3,5.69479]
[1741995988275,1.05312986,1913.4,1913.3,4.6495]
[1741995988472,1.05312986,1913.4,1913.3,5.69479]
[1741995988667,0.00783986,1913.4,1913.3,5.69479]
[1741995989377,3.2078,1913.6,1913.5,1.04518]
[1741995989569,1.04506,1913.8,1913.7,1.04507]
[1741995989970,3.2078,1914.2,1913.7,3.2078]
[1741995990270,3.2078,1914.2,1913.9,1.04494]
[1741995990271,1.04494,1914.0,1913.9,1.04494]
[1741995990477,1.04489,1914.1,1914.0,4.25269]
[1741995990775,1.05272986,1914.1,1914.0,4.97251]
[1741995991167,1.05272986,1914.1,1914.0,3.9276]
[1741995991368,0.00783986,1914.1,1914.0,4.97251]
[1741995991968,0.00783986,1914.1,1914.0,8.18031]
[1741995992380,0.00783986,1914.1,1914.0,9.61841]
[1741995992573,1.4032,1914.5,1914.0,8.5735]
[1741995992774,1.04467,1914.5,1914.1,6.6658]
[1741995992980,3.2078,1914.6,1914.2,4.537]
[1741995993277,1.04472,1914.4,1914.3,1.04474]
[1741995993472,1.04472,1914.4,1914.3,3.2078]
[1741995993878,1.04469,1914.4,1914.3,4.25251]
[1741995994077,1.05250986,1914.5,1914.3,4.25251]
[1741995994272,1.05250986,1914.5,1914.4,7.995]
[1741995995479,2.39390986,1914.5,1914.4,7.995]
[1741995996874,1.05250986,1914.5,1914.4,7.995]
[1741995997076,1.05250986,1914.5,1914.4,9.03969]
[1741995998078,1.05250986,1914.5,1914.4,7.995]
[1741995999077,2.50280986,1914.5,1914.4,7.995]
[1741996006981,2.50280986,1914.5,1914.4,4.7872]
[1741996007179,2.50280986,1914.5,1914.4,7.995]
[1741996007576,2.50280986,1914.5,1914.4,4.537]
[1741996007776,1.04496,1913.9,1913.8,0.00783986]
[1741996008078,1.04496,1913.9,1913.8,3.45883986]
[1741996008283,3.8873,1914.2,1913.8,6.66663986]
[1741996008484,1.04495,1914.0,1913.9,3.2078]
[1741996008683,1.04496,1913.9,1913.8,4.50381986]
[1741996008882,1.04491,1914.0,1913.9,3.2078]
[1741996009283,1.04491,1914.0,1913.9,4.6228]
[1741996009584,1.04491,1914.0,1913.9,5.66776]
[1741996010876,1.04486,1914.1,1914.0,1.04486]
[1741996011082,1.04485,1914.2,1914.1,1.04484]
[1741996011279,1.04485,1914.2,1914.1,5.67694]
[1741996012086,1.04485,1914.2,1914.1,4.6321]
[1741996012274,4.25265,1914.2,1914.1,4.6321]
[1741996012476,4.25265,1914.2,1914.1,3.2078]
[1741996012880,4.25265,1914.2,1914.1,4.6321]
[1741996013079,4.25265,1914.2,1914.1,3.2078]
[1741996013578,4.25265,1914.2,1914.1,4.6321]
[1741996014179,4.25265,1914.2,1914.1,3.2078]
[1741996016186,4.25265,1914.2,1914.1,4.5791]
[1741996016586,4.25265,1914.2,1914.1,5.62395]
[1741996016786,4.25265,1914.2,1914.1,4.5791]
[1741996017991,4.25265,1914.2,1914.1,5.302]
[1741996018994,4.25265,1914.2,1914.1,6.34685]
[1741996019193,4.25265,1914.2,1914.1,7.03575]
[1741996019399,4.25265,1914.2,1914.1,5.9909]
[1741996021586,1.04485,1914.2,1914.1,5.9909]
[1741996021987,1.04485,1914.2,1914.1,7.03575]
[1741996024095,1.04479,1914.3,1914.2,1.04476]
[1741996024290,1.04473,1914.4,1914.3,1.04471]
[1741996024498,3.21563986,1914.5,1914.3,8.0318]
[1741996024706,4.26031986,1914.5,1914.4,4.25249]
[1741996025000,0.00783986,1914.5,1914.4,6.32039]
[1741996025204,1.05246986,1914.5,1914.4,6.32039]
[1741996026699,1.05246986,1914.5,1914.4,5.2757]
[1741996026899,1.05246986,1914.5,1914.4,8.7157]
[1741996028605,1.05246986,1914.5,1914.4,8.0308]
[1741996028807,1.74476986,1914.5,1914.4,8.0308]
[1741996029002,2.46706986,1914.5,1914.4,8.0308]
[1741996030507,5.67486986,1914.5,1914.4,8.0308]
[1741996031900,4.26026986,1914.5,1914.4,8.0308]
[1741996032100,1.05246986,1914.5,1914.4,9.07549]
[1741996032506,1.05246986,1914.5,1914.4,8.0308]
[1741996035507,4.26026986,1914.5,1914.4,4.5908]
[1741996035708,4.26026986,1914.5,1914.4,3.2078]
[1741996037012,1.04469,1914.4,1914.3,1.3208]
[1741996037313,3.19719,1914.4,1914.3,1.3208]
[1741996037511,3.19719,1914.4,1914.3,4.5286]
[1741996038511,3.19719,1914.4,1914.3,3.2078]
[1741996041815,3.19719,1914.4,1914.3,3.8783]
[1741996042113,1.04469,1914.4,1914.3,3.8783]
[1741996042309,1.04469,1914.4,1914.3,5.2671]
[1741996042519,4.26028986,1914.5,1914.4,1.04469]
[1741996042709,1.05248986,1914.5,1914.4,9.07729]
[1741996043607,1.05248986,1914.5,1914.4,8.0326]
[1741996043914,1.05248986,1914.5,1914.4,9.07729]
[1741996045208,1.05248986,1914.5,1914.4,8.0326]
[1741996045513,1.05248986,1914.5,1914.4,9.07729]
[1741996046313,1.05248986,1914.5,1914.4,8.0326]
[1741996046807,1.05248986,1914.5,1914.4,9.07729]
[1741996047018,1.05248986,1914.5,1914.4,8.0326]
[1741996047712,1.05248986,1914.5,1914.4,9.07729]
[1741996050215,1.05248986,1914.5,1914.4,9.06729]
[1741996050414,1.05248986,1914.5,1914.4,8.0226]
[1741996050615,1.05248986,1914.5,1914.4,9.06729]
[1741996054810,1.05248986,1914.5,1914.4,5.85949]
[1741996055004,1.05248986,1914.5,1914.4,9.06729]
[1741996055317,1.05248986,1914.5,1914.4,8.0226]
[1741996056114,1.05248986,1914.5,1914.4,9.06729]
[1741996058918,0.00783986,1914.5,1914.4,9.06729]
[1741996060022,4.25236,1914.7,1914.6,1.04458]
[1741996060321,4.25236,1914.7,1914.6,3.2078]
[1741996060621,4.25236,1914.7,1914.6,4.25238]
[1741996060822,4.25236,1914.7,1914.6,6.31978]
[1741996061214,4.25236,1914.7,1914.6,5.2752]
[1741996062816,4.25236,1914.7,1914.6,6.31978]
[1741996063326,1.05234986,1914.8,1914.7,1.04452]
[1741996063517,1.05234986,1914.8,1914.7,9.06112]
[1741996064324,1.05234986,1914.8,1914.7,8.0166]
[1741996065719,1.05230986,1914.8,1914.7,9.06112]
[1741996067026,0.00783986,1914.8,1914.7,9.06112]
[1741996067718,0.00783986,1914.8,1914.7,8.0166]
[1741996068322,1.05230986,1914.8,1914.7,8.0166]
[1741996068926,2.40520986,1914.8,1914.7,9.06112]
[1741996069232,2.40520986,1914.8,1914.7,8.0166]
[1741996069422,2.40520986,1914.8,1914.7,9.06112]
[1741996070223,0.00783986,1914.8,1914.7,9.06112]
[1741996070831,1.05230986,1914.8,1914.7,9.06112]
[1741996071031,0.00783986,1914.8,1914.7,9.06112]
[1741996071425,1.05230986,1914.8,1914.7,9.06112]
[1741996072030,0.00783986,1914.8,1914.7,9.06112]
[1741996072725,1.05230986,1914.8,1914.7,9.06112]
[1741996073028,0.00783986,1914.8,1914.7,9.06112]
[1741996074333,0.00783986,1914.8,1914.7,9.06112]
[1741996075626,0.00783986,1914.8,1914.7,12.26892]
[1741996080424,1.05230986,1914.8,1914.7,8.0166]
[1741996080627,1.05230986,1914.8,1914.7,4.6066]
[1741996080628,2.47690986,1914.8,1914.7,4.6066]
[1741996080837,3.19750986,1914.8,1914.7,7.9986]
[1741996081332,3.19750986,1914.8,1914.7,9.04312]
[1741996081533,3.19750986,1914.8,1914.7,7.9986]
[1741996082733,3.19750986,1914.8,1914.7,6.5998]
[1741996082929,7.86083986,1914.8,1913.9,4.25273]
[1741996083135,1.04485,1914.1,1914.0,4.7317]
[1741996083338,1.04485,1914.1,1914.0,3.2078]
[1741996083536,1.04485,1914.1,1914.0,6.6078]
[1741996083929,2.48695,1914.1,1914.0,6.6078]
[1741996084136,2.48695,1914.1,1914.0,8.98541]
[1741996084340,1.4421,1914.1,1914.0,8.98541]
[1741996084637,2.48695,1914.1,1914.0,8.98541]
[1741996085035,2.48695,1914.1,1914.0,7.9405]
[1741996085928,2.48695,1914.1,1914.0,8.98541]
[1741996086131,2.48695,1914.1,1914.0,7.9405]
[1741996087036,2.48695,1914.1,1914.0,8.98541]
[1741996087239,2.48695,1914.1,1914.0,7.9405]
[1741996087539,2.48695,1914.1,1914.0,3.2078]
[1741996087731,2.48695,1914.1,1914.0,6.6158]
[1741996090433,2.48695,1914.1,1914.0,3.2078]
[1741996091635,1.04496,1913.9,1913.8,0.00783986]
[1741996092141,1.04496,1913.9,1913.8,6.61963986]
[1741996092533,2.49026,1913.9,1913.8,6.61963986]
[1741996092934,2.49026,1913.9,1913.8,0.00783986]
[1741996098342,3.9453,1913.9,1913.3,0.7294]
[1741996098548,1.04518,1913.5,1913.4,6.6088]
[1741996099044,2.48228,1913.5,1913.4,8.0443]
[1741996102846,2.48228,1913.5,1913.4,9.08953]
[1741996104049,2.48228,1913.5,1913.4,9.81693]
[1741996104742,2.48228,1913.5,1913.4,8.7717]
[1741996105143,2.48228,1913.5,1913.4,8.0443]
[1741996105350,3.19088,1913.5,1913.4,8.0443]
[1741996108046,2.48228,1913.5,1913.4,8.0443]
[1741996109955,2.48228,1913.5,1913.4,4.8365]
[1741996110156,2.48228,1913.5,1913.4,8.0443]
[1741996112755,2.48228,1913.5,1913.4,8.0303]
[1741996114357,2.48228,1913.5,1913.4,4.6433]
[1741996114552,2.48228,1913.5,1913.4,8.0283]
[1741996116350,1.04523,1913.4,1913.3,0.00783986]
[1741996116552,1.04529,1913.3,1913.2,3.2352]
[1741996116855,1.04529,1913.3,1913.2,0.0274]
[1741996117059,2.45289,1913.3,1913.2,3.2352]
[1741996118053,3.2078,1913.5,1913.2,3.2352]
[1741996118253,1.04529,1913.4,1913.3,8.34587]
[1741996118557,2.39269,1913.4,1913.3,4.0928]
[1741996118759,2.39269,1913.4,1913.3,7.3006]
[1741996120060,2.39269,1913.4,1913.3,3.388]
[1741996120967,2.39269,1913.4,1913.3,6.5958]
[1741996123456,2.39269,1913.4,1913.3,7.9377]
[1741996124469,2.39269,1913.4,1913.3,4.5497]
[1741996127477,2.39269,1913.4,1913.3,3.2078]
[1741996127676,1.04534,1913.2,1913.1,0.00783986]
[1741996127868,4.25314,1913.2,1913.1,0.00783986]
[1741996128377,9.00918357,1913.2,1913.1,9.86e-06]
[1741996129278,8.11944,1913.2,1913.1,9.86e-06]
[1741996129479,9.00866914,1913.2,1913.1,9.86e-06]
[1741996129779,8.11944,1913.2,1913.1,9.86e-06]
[1741996130772,5.61944,1913.2,1913.1,9.86e-06]
[1741996131175,8.11944,1913.2,1913.1,9.86e-06]
[1741996132279,5.61944,1913.2,1913.1,9.86e-06]
[1741996133182,5.61944,1913.2,1913.1,1.93389986]
[1741996134177,1.04545,1913.0,1912.9,0.7029]
[1741996134482,1.04551,1912.9,1912.8,1.3571]
[1741996134780,3.88701,1912.9,1912.8,2.20321986]
[1741996136692,1.04573,1912.5,1912.4,3.2078]
[1741996136985,1.04573,1912.5,1912.4,4.97266]
[1741996137176,1.04573,1912.5,1912.4,5.81877986]
[1741996137787,1.04573,1912.5,1912.4,4.96921986]
[1741996137978,2.38293,1912.5,1912.4,7.00101986]
[1741996138377,2.38293,1912.5,1912.4,7.00201986]
[1741996138984,1.04573,1912.5,1912.4,8.04779986]
[1741996139178,1.04573,1912.5,1912.4,7.00201986]
[1741996139379,1.04573,1912.5,1912.4,3.59701986]
[1741996139580,1.04573,1912.5,1912.4,7.00101986]
[1741996140683,1.04573,1912.5,1912.4,8.04679986]
[1741996140879,1.04573,1912.5,1912.4,7.00101986]
[1741996141389,1.04573,1912.5,1912.4,8.04679986]
[1741996141588,1.34503986,1912.6,1912.4,8.04679986]
[1741996141589,2.39072986,1912.6,1912.5,1.04573]
[1741996141783,2.39072986,1912.6,1912.5,2.30491986]
[1741996141983,1.05352986,1912.6,1912.5,2.30491986]
[1741996142682,1.05352986,1912.6,1912.5,3.35064986]
[1741996144387,0.00783986,1912.6,1912.5,3.35064986]
[1741996144699,1.05350986,1912.6,1912.5,3.35064986]
[1741996145594,0.00783986,1912.6,1912.5,3.35064986]
[1741996146186,1.05350986,1912.6,1912.5,3.35064986]
[1741996161302,1.05350986,1912.6,1912.5,6.73264986]
[1741996163204,0.00783986,1912.6,1912.5,6.73264986]
[1741996163407,1.05350986,1912.6,1912.5,6.73264986]
[1741996164705,0.00783986,1912.6,1912.5,6.73264986]
[1741996166107,1.05350986,1912.6,1912.5,6.73264986]
[1741996169609,0.00783986,1912.6,1912.5,6.73264986]
[1741996170311,1.05350986,1912.6,1912.5,6.73264986]
[1741996172420,0.00783986,1912.6,1912.5,6.73264986]
[1741996172717,1.05350986,1912.6,1912.5,6.73264986]
[1741996172921,0.00783986,1912.6,1912.5,6.73264986]
[1741996173621,1.41153986,1912.6,1912.5,6.73264986]
[1741996173811,0.00783986,1912.6,1912.5,6.73264986]
[1741996174010,3.8936,1913.0,1912.5,6.73264986]
[1741996174011,3.2078,1913.0,1912.7,1.04562]
[1741996174206,2.61312,1913.4,1912.8,9.4483]
[1741996174420,2.44912,1913.1,1913.0,1.04541]
[1741996174713,2.44912,1913.1,1913.0,2.47021]
[1741996174914,2.44912,1913.1,1913.0,3.31632986]
[1741996175313,2.44912,1913.1,1913.0,2.27091986]
[1741996176412,1.04545,1913.0,1912.9,3.38883986]
[1741996176715,2.48525,1913.0,1912.9,4.23495972]
[1741996176905,2.48525,1913.0,1912.9,0.85395972]
[1741996183207,2.61397,1912.8,1912.4,4.25354]
[1741996183414,1.04567,1912.6,1912.5,5.55811986]
[1741996184318,1.04567,1912.6,1912.5,6.60384986]
[1741996186917,1.04567,1912.6,1912.5,5.75773]
[1741996187120,1.04567,1912.6,1912.5,6.60384986]
[1741996187720,1.3841,1912.7,1912.6,1.04567]
[1741996187925,1.3841,1912.7,1912.6,6.54758986]
[1741996188109,1.04558,1912.8,1912.7,1.04562]
[1741996188312,2.37885,1912.9,1912.8,1.04553]
[1741996188619,2.37885,1912.9,1912.8,6.66904986]
[1741996189422,1.3333,1912.9,1912.8,6.66904986]
[1741996189621,1.3333,1913.0,1912.9,1.04551]
[1741996189821,1.3333,1913.0,1912.9,3.28802986]
[1741996191318,2.37875,1913.0,1912.9,3.28802986]
[1741996194122,1.3333,1913.0,1912.9,3.28802986]
[1741996194319,1.04543,1913.1,1913.0,1.04545]
[1741996194625,1.4091,1913.1,1913.0,4.62506986]
[1741996194822,0.00783986,1913.2,1913.1,1.0454]
[1741996195012,0.00783986,1913.2,1913.1,5.27251986]
[1741996195324,1.41693986,1913.2,1913.1,6.61871986]
[1741996195922,2.46232986,1913.2,1913.1,6.61871986]
[1741996196617,2.46232986,1913.2,1913.1,5.57331986]
[1741996197819,2.46232986,1913.2,1913.1,6.61871986]
[1741996201732,2.46232986,1913.2,1913.1,5.57331986]
[1741996202133,2.46232986,1913.2,1913.1,6.61871986]
[1741996202628,2.46232986,1913.2,1913.1,5.57331986]
[1741996202823,2.46232986,1913.2,1913.1,4.22711986]
[1741996203029,2.46232986,1913.2,1913.1,0.84611986]
[1741996203632,2.46232986,1913.2,1913.1,2.22511986]
[1741996204630,2.46232986,1913.2,1913.1,1.379]
[1741996204835,2.46232986,1913.2,1913.1,2.22511986]
[1741996205329,2.46232986,1913.2,1913.1,0.84611986]
[1741996206528,1.41693986,1913.2,1912.8,5.71402]
[1741996206733,2.167,1913.1,1912.9,5.65241986]
[1741996206933,2.48675,1913.0,1912.9,5.65241986]
[1741996207132,2.48675,1913.0,1912.9,5.27162986]
[1741996207837,2.48675,1913.0,1912.9,4.22611986]
[1741996208436,2.48675,1913.0,1912.9,0.84611986]
[1741996208629,2.48675,1913.0,1912.9,5.27162986]
[1741996209030,2.48675,1913.0,1912.9,4.22611986]
[1741996210341,2.48675,1913.0,1912.9,4.22611986]
[1741996210740,2.48675,1913.0,1912.9,5.27162986]
[1741996215138,1.4413,1913.0,1912.9,5.27162986]
[1741996215441,1.04556,1912.8,1912.7,28.988]
[1741996215643,1.04556,1912.8,1912.7,29.83411986]
[1741996216033,2.36506,1912.8,1912.7,29.83411986]
[1741996216438,2.36506,1912.8,1912.7,31.59493986]
[1741996216941,2.36506,1912.8,1912.7,32.32353986]
[1741996217344,2.36506,1912.8,1912.7,31.27791986]
[1741996218943,2.36506,1912.8,1912.7,31.47742]
[1741996221239,1.3195,1912.8,1912.7,31.47742]
[1741996221439,2.36506,1912.8,1912.7,31.47742]
[1741996221644,1.04549,1913.0,1912.9,1.04551]
[1741996221847,2.48769,1913.0,1912.9,4.42651]
[1741996222244,3.2078,1913.1,1913.0,1.04545]
[1741996222545,4.65,1913.1,1913.0,2.45215]
[1741996222945,1.05317986,1913.2,1913.1,1.0454]
[1741996223249,2.49537986,1913.2,1913.1,2.4788]
[1741996223946,2.49537986,1913.2,1913.1,3.32491986]
[1741996224247,2.49537986,1913.2,1913.1,2.27951986]
[1741996224641,3.88337986,1913.2,1913.1,2.27951986]
[1741996225539,3.17327986,1913.2,1913.1,2.27951986]
[1741996225739,2.49537986,1913.2,1913.1,2.27951986]
[1741996226150,2.49537986,1913.2,1913.1,3.32491986]
[1741996228150,2.49537986,1913.2,1913.1,2.27951986]
[1741996230047,2.49537986,1913.2,1913.1,3.32491986]
[1741996230247,2.49537986,1913.2,1913.1,2.27951986]
[1741996230553,2.49537986,1913.2,1913.1,3.32491986]
[1741996230751,2.49537986,1913.2,1913.1,2.27951986]
[1741996238254,4.06345986,1913.2,1912.8,3.2078]
[1741996238454,3.107,1913.1,1913.0,3.38]
[1741996238655,3.107,1913.1,1913.0,4.7291]
[1741996238847,3.107,1913.1,1913.0,5.57521986]
[1741996239555,3.8016,1913.1,1913.0,5.57521986]
[1741996240355,3.8016,1913.1,1913.0,3.38]
[1741996240752,1.04551,1912.9,1912.8,1.3629]
[1741996240953,1.04551,1912.9,1912.8,4.7429]
[1741996241152,1.04551,1912.9,1912.8,5.58901986]
[1741996241353,1.04551,1912.9,1912.8,4.7429]
[1741996241655,1.04551,1912.9,1912.8,5.58901986]
[1741996242756,1.04556,1912.8,1912.7,28.988]
[1741996242958,3.80076,1912.8,1912.7,29.83411986]
[1741996244956,3.80076,1912.8,1912.7,30.53921986]
[1741996245157,2.41066,1912.8,1912.7,31.89101986]
[1741996245460,2.41066,1912.8,1912.7,32.60051986]
[1741996246958,2.41066,1912.8,1912.7,33.64613986]
[1741996247462,2.41066,1912.8,1912.7,32.60051986]
[1741996247656,2.41066,1912.8,1912.7,0.84611986]
[1741996247857,3.75786,1912.8,1912.7,0.84611986]
[1741996248765,3.75786,1912.8,1912.7,2.24471986]
[1741996249456,3.75786,1912.8,1912.7,2.97341986]
[1741996250668,2.039,1912.8,1912.7,4.01903986]
[1741996250866,2.41066,1912.8,1912.7,4.01903986]
[1741996251460,3.2078,1912.9,1912.8,1.04556]
[1741996251659,4.5549,1912.9,1912.8,7.30717986]
[1741996252062,1.3471,1912.9,1912.8,7.30717986]
[1741996253268,2.39261,1912.9,1912.8,7.30717986]
[1741996253461,1.3471,1912.9,1912.8,7.30717986]
[1741996254064,1.04549,1913.0,1912.9,1.04551]
[1741996254370,2.39939,1913.0,1912.9,3.28832986]
[1741996254665,2.39939,1913.0,1912.9,2.24281986]
[1741996258667,1.3539,1913.0,1912.8,3.38]
[1741996258874,3.08311,1912.9,1912.8,5.66871986]
[1741996259773,3.08311,1912.9,1912.8,4.22611986]
[1741996260577,3.08311,1912.9,1912.8,5.66871986]
[1741996261074,3.08311,1912.9,1912.8,0.84611986]
[1741996261378,1.04562,1912.7,1912.6,32.371]
[1741996261876,1.04562,1912.7,1912.6,33.21711986]
[1741996262874,1.04562,1912.7,1912.6,33.91091986]
[1741996263480,2.42562,1912.7,1912.6,33.91091986]
[1741996263682,2.42562,1912.7,1912.6,36.04241986]
[1741996267186,2.42562,1912.7,1912.6,34.63441986]
[1741996267384,2.42562,1912.7,1912.6,33.21711986]
[1741996268788,5.63342,1912.7,1912.6,33.21711986]
[1741996269386,5.63342,1912.7,1912.6,29.83711986]
[1741996273583,2.42562,1912.7,1912.6,29.83711986]
[1741996273787,2.42562,1912.7,1912.6,31.24451986]
[1741996274388,2.42562,1912.7,1912.6,30.3984]
[1741996274594,2.42562,1912.7,1912.6,32.59591986]
[1741996275995,2.42562,1912.7,1912.6,3.60491986]
[1741996277492,2.42562,1912.7,1912.6,2.91571986]
[1741996277689,2.42562,1912.7,1912.6,2.19751986]
[1741996277991,2.42562,1912.7,1912.6,5.57751986]
[1741996278192,5.63342,1912.7,1912.6,4.22611986]
[1741996278395,5.63342,1912.7,1912.6,6.36831986]
[1741996279392,5.63342,1912.7,1912.6,0.84611986]
[1741996280692,1.04573,1912.5,1912.4,1.4535]
[1741996280896,4.25353,1912.5,1912.4,4.8335]
[1741996281089,4.25353,1912.5,1912.4,4.22611986]
[1741996281291,5.60773,1912.5,1912.4,4.22611986]
[1741996282090,7.1764,1912.5,1912.2,28.995]
[1741996282394,4.25364,1912.3,1912.2,31.29461986]
[1741996282795,5.69754,1912.3,1912.2,31.29461986]
[1741996283297,7.1517,1912.3,1911.4,28.996]
[1741996283594,3.2078,1911.8,1911.6,1.04617]
[1741996283797,1.04622,1911.6,1911.5,2.30251986]
[1741996284199,11.5918,1911.6,1910.8,3.2078]
[1741996284491,1.0466,1910.9,1910.8,1.4564]
[1741996284688,1.04666,1910.8,1910.7,12.22778913]
[1741996284890,2.44086,1910.8,1910.7,12.22778913]
[1741996285087,0.00783986,1910.9,1910.6,1.04672]
[1741996285288,1.04682,1910.5,1910.4,12.22778913]
[1741996285490,1.04675,1910.7,1910.5,1.04678]
[1741996285695,5.884,1910.8,1910.6,3.2078]
[1741996285890,0.00783986,1910.9,1910.7,1.3928]
[1741996285891,1.44773986,1910.9,1910.7,1.3928]
[1741996286199,4.65553986,1910.9,1910.8,1.04666]
[1741996286492,5.70215986,1910.9,1910.7,5.92848]
[1741996286692,5.70215986,1910.9,1910.7,4.8818]
[1741996286693,4.65553986,1910.9,1910.7,4.8818]
[1741996286893,0.00783986,1910.9,1910.7,1.3928]
[1741996287099,1.04633,1911.4,1910.8,37.0946]
[1741996287295,5.694,1911.5,1911.0,3.2078]
[1741996287597,5.69399,1911.5,1911.3,1.04636]
[1741996287798,5.69399,1911.5,1911.4,4.8888]
[1741996287990,3.2078,1911.7,1911.4,4.8888]
[1741996288295,0.7098,1912.1,1911.5,2.43907]
[1741996288296,0.00783986,1911.6,1911.5,2.43907]
[1741996289193,0.00783986,1911.6,1911.5,5.64687]
[1741996290095,4.25377,1912.1,1911.9,1.04605]
[1741996290593,4.25377,1912.1,1911.6,1.367]
[1741996290594,1.4213,1912.0,1911.8,3.498]
[1741996290795,1.04608,1911.9,1911.8,4.865]
[1741996290997,1.04608,1911.9,1911.8,3.498]
[1741996291195,2.46738,1911.9,1911.8,3.498]
[1741996291698,1.4213,1911.9,1911.5,3.2078]
[1741996292001,1.04616,1911.7,1911.6,3.495]
[1741996293099,1.04616,1911.7,1911.6,4.5412]
[1741996293496,1.3297,1911.8,1911.6,4.5412]
[1741996293796,1.3297,1911.8,1911.7,1.04616]
[1741996294004,3.2078,1911.9,1911.8,1.04611]
[1741996294804,1.33753986,1912.0,1911.8,1.04611]
[1741996294994,2.38356986,1912.0,1911.9,3.493]
[1741996295498,2.38353986,1912.0,1911.9,3.493]
[1741996295699,2.38353986,1912.0,1911.9,4.53905]
[1741996296001,1.05383986,1912.0,1911.9,4.53905]
[1741996297599,0.00783986,1912.0,1911.9,4.53905]
[1741996298201,1.05383986,1912.0,1911.9,4.53905]
[1741996299002,1.05383986,1912.0,1911.9,3.493]
[1741996299409,2.43303986,1912.0,1911.9,3.493]
[1741996299800,2.43303986,1912.0,1911.9,4.53905]
[1741996300400,2.43303986,1912.0,1911.9,3.493]
[1741996301206,2.43303986,1912.0,1911.9,4.53905]
[1741996301605,1.05383986,1912.0,1911.9,4.53905]
[1741996302606,2.41983986,1912.0,1911.9,4.53905]
[1741996302999,2.41983986,1912.0,1911.9,5.90885]
[1741996304106,1.37383986,1912.0,1911.9,5.90885]
[1741996304309,0.00783986,1912.0,1911.9,5.90885]
[1741996306103,1.04585,1912.3,1912.0,2.61495]
[1741996306309,1.04585,1912.3,1912.2,1.04585]
[1741996306509,2.50665,1912.3,1912.2,4.51885]
[1741996306708,2.50665,1912.3,1912.2,5.19705]
[1741996307506,3.21563986,1912.4,1912.2,4.1512]
[1741996307709,3.21563986,1912.4,1912.3,2.39004]
[1741996307914,3.21563986,1912.4,1912.3,3.08204]
[1741996309715,2.6146,1912.3,1911.6,5.23088]
[1741996309919,1.04611,1911.8,1911.5,3.2078]
[1741996310216,1.04611,1911.8,1911.7,32.494]
[1741996311317,2.43821,1911.8,1911.7,35.00236]
[1741996311518,1.3921,1911.8,1911.7,35.00236]
[1741996311915,3.2078,1911.9,1911.8,1.04611]
[1741996312115,3.2078,1911.9,1911.8,2.50831]
[1741996313220,4.5999,1911.9,1911.8,2.50831]
[1741996313422,1.04598,1912.1,1912.0,1.046]
[1741996313618,2.42038,1912.1,1912.0,4.537]
[1741996313816,2.42038,1912.1,1912.0,3.491]
[1741996314013,5.62818,1912.1,1912.0,3.491]
[1741996316417,5.62818,1912.1,1911.7,30.05214]
[1741996316418,1.04611,1911.8,1911.7,29.006]
[1741996316720,4.25391,1911.8,1911.7,32.498]
[1741996317423,6.33401,1911.8,1911.7,32.498]
[1741996317822,6.33401,1911.8,1911.7,32.496]
[1741996318024,6.33401,1911.8,1911.7,33.8717]
[1741996318323,6.33401,1911.8,1911.7,32.496]
[1741996319821,4.6273,1911.8,1911.7,33.54216]
[1741996320224,4.6273,1911.8,1911.7,32.496]
[1741996320225,5.67341,1911.8,1911.7,32.496]
[1741996321521,5.67341,1911.8,1911.7,29.006]
[1741996321721,5.67341,1911.8,1911.7,32.491]
[1741996322324,5.67341,1911.8,1911.7,32.49]
[1741996323820,5.67341,1911.8,1911.7,33.9219]